[Event "Titled Tuesday Blitz November 07 Early 2023"]
[White "Rosen, Eric"]
[Black "Predator0608"]
[WhiteFideId "2032562"]
[WhiteElo "2734"]
[BlackElo "2592"]
[Result "1-0"]
[Round "11"]
[TimeControl "180+1"]
[Date "2023.11.07"]
[WhiteClock "0:00:55"]
[BlackClock "0:00:02"]
[Board "43"]

1. e4 {[%clk 0:03:00]}  e5 {[%clk 0:02:59]} 2. Nf3 {[%clk 0:03:00]}  Nc6 {[%clk 0:02:59]} 3. Nc3 {[%clk 0:03:00]}  Nf6 {[%clk 0:02:57]} 4. d4 {[%clk 0:02:59]}  exd4 {[%clk 0:02:40]} 5. Nxd4 {[%clk 0:03:00]}  Bc5 {[%clk 0:02:31]} 6. Be3 {[%clk 0:02:58]}  Nxd4 {[%clk 0:02:24]} 7. Bxd4 {[%clk 0:02:58]}  Bxd4 {[%clk 0:02:25]} 8. Qxd4 {[%clk 0:02:59]}  d6 {[%clk 0:02:26]} 9. O-O-O {[%clk 0:02:52]}  Qe7 {[%clk 0:02:27]} 10. f3 {[%clk 0:02:51]}  Be6 {[%clk 0:02:23]} 11. Kb1 {[%clk 0:02:49]}  h5 {[%clk 0:02:19]} 12. f4 {[%clk 0:02:28]}  Bg4 {[%clk 0:02:08]} 13. Re1 {[%clk 0:02:27]}  O-O {[%clk 0:02:07]} 14. h3 {[%clk 0:02:25]}  Bd7 {[%clk 0:01:54]} 15. Bd3 {[%clk 0:01:57]}  Bc6 {[%clk 0:01:35]} 16. g4 {[%clk 0:01:43]}  h4 {[%clk 0:01:09]} 17. Qf2 {[%clk 0:01:33]}  Nd7 {[%clk 0:01:03]} 18. g5 {[%clk 0:01:30]}  Nc5 {[%clk 0:01:02]} 19. Qxh4 {[%clk 0:01:27]}  Nxd3 {[%clk 0:00:38]} 20. cxd3 {[%clk 0:01:25]}  b5 {[%clk 0:00:38]} 21. f5 {[%clk 0:01:08]}  b4 {[%clk 0:00:31]} 22. Nd5 {[%clk 0:01:00]}  Qd8 {[%clk 0:00:05]} 23. Nf6+ {[%clk 0:00:55]}  gxf6 {[%clk 0:00:02]} 24. gxf6 {[%clk 0:00:55]} 1-0


[Site "https://www.chess.com"]

[Event "Titled Tuesday Blitz November 07 Early 2023"]
[White "Avazkhonov, Alikhon"]
[Black "MKlose11"]
[WhiteFideId "14208504"]
[WhiteElo "2562"]
[BlackElo "2711"]
[Result "0-1"]
[Round "11"]
[TimeControl "180+1"]
[Date "2023.11.07"]
[WhiteClock "0:00:02"]
[BlackClock "0:01:33"]
[Board "46"]

1. d4 {[%clk 0:02:55]}  Nf6 {[%clk 0:02:53]} 2. c4 {[%clk 0:02:55]}  c5 {[%clk 0:02:53]} 3. d5 {[%clk 0:02:55]}  b5 {[%clk 0:02:53]} 4. cxb5 {[%clk 0:02:55]}  a6 {[%clk 0:02:53]} 5. e3 {[%clk 0:02:53]}  g6 {[%clk 0:02:53]} 6. Nc3 {[%clk 0:02:53]}  Bg7 {[%clk 0:02:54]} 7. Nf3 {[%clk 0:02:53]}  O-O {[%clk 0:02:54]} 8. a4 {[%clk 0:02:53]}  d6 {[%clk 0:02:52]} 9. e4 {[%clk 0:02:44]}  Nbd7 {[%clk 0:02:48]} 10. Ra3 {[%clk 0:02:36]}  Ne8 {[%clk 0:02:48]} 11. bxa6 {[%clk 0:02:35]}  Bxa6 {[%clk 0:02:47]} 12. Bxa6 {[%clk 0:02:36]}  Rxa6 {[%clk 0:02:47]} 13. O-O {[%clk 0:02:37]}  Nc7 {[%clk 0:02:46]} 14. Nb5 {[%clk 0:02:36]}  Nxb5 {[%clk 0:02:45]} 15. axb5 {[%clk 0:02:37]}  Rb6 {[%clk 0:02:46]} 16. Ra5 {[%clk 0:02:23]}  Qc7 {[%clk 0:02:33]} 17. Qa4 {[%clk 0:02:15]}  Rfb8 {[%clk 0:02:33]} 18. b4 {[%clk 0:02:14]}  cxb4 {[%clk 0:02:26]} 19. Be3 {[%clk 0:02:06]}  Nc5 {[%clk 0:02:19]} 20. Qxb4 {[%clk 0:02:06]}  Qb7 {[%clk 0:02:10]} 21. Bxc5 {[%clk 0:02:01]}  dxc5 {[%clk 0:02:11]} 22. Qxc5 {[%clk 0:02:02]}  Rxb5 {[%clk 0:02:12]} 23. Rxb5 {[%clk 0:02:01]}  Qxb5 {[%clk 0:02:12]} 24. Qxe7 {[%clk 0:01:55]}  Re8 {[%clk 0:02:12]} 25. Qc7 {[%clk 0:01:47]}  Rxe4 {[%clk 0:02:12]} 26. d6 {[%clk 0:01:47]}  Bf6 {[%clk 0:01:56]} 27. d7 {[%clk 0:01:29]}  Qd5 {[%clk 0:01:54]} 28. g3 {[%clk 0:01:15]}  Re2 {[%clk 0:01:46]} 29. Kg2 {[%clk 0:00:40]}  Kg7 {[%clk 0:01:43]} 30. Rb1 {[%clk 0:00:23]}  Rd2 {[%clk 0:01:40]} 31. Rb7 {[%clk 0:00:20]}  Rd3 {[%clk 0:01:36]} 32. d8=Q {[%clk 0:00:18]}  Qxf3+ {[%clk 0:01:35]} 33. Kg1 {[%clk 0:00:09]}  Bxd8 {[%clk 0:01:34]} 34. Qe5+ {[%clk 0:00:02]}  Bf6 {[%clk 0:01:33]} 0-1


[Site "https://www.chess.com"]

[Event "Titled Tuesday Blitz November 07 Early 2023"]
[White "Nagare Kaivalya Sandip"]
[Black "ChainedDowntohell"]
[WhiteFideId "25957929"]
[WhiteElo "2702"]
[BlackElo "2526"]
[Result "0-1"]
[Round "11"]
[TimeControl "180+1"]
[Date "2023.11.07"]
[WhiteClock "0:00:09"]
[BlackClock "0:00:04"]
[Board "47"]

1. e4 {[%clk 0:02:59]}  e5 {[%clk 0:02:59]} 2. Nf3 {[%clk 0:02:58]}  Nf6 {[%clk 0:02:59]} 3. d4 {[%clk 0:02:56]}  Nxe4 {[%clk 0:02:49]} 4. Bd3 {[%clk 0:02:55]}  d5 {[%clk 0:02:47]} 5. Nxe5 {[%clk 0:02:56]}  Bd6 {[%clk 0:02:43]} 6. O-O {[%clk 0:02:52]}  Nd7 {[%clk 0:02:40]} 7. Nxd7 {[%clk 0:02:46]}  Bxd7 {[%clk 0:02:41]} 8. Nd2 {[%clk 0:02:46]}  Nxd2 {[%clk 0:02:36]} 9. Bxd2 {[%clk 0:02:44]}  O-O {[%clk 0:02:27]} 10. Qh5 {[%clk 0:02:41]}  f5 {[%clk 0:02:25]} 11. Qf3 {[%clk 0:02:40]}  c6 {[%clk 0:02:22]} 12. c4 {[%clk 0:02:37]}  Qh4 {[%clk 0:02:13]} 13. g3 {[%clk 0:02:32]}  Qxd4 {[%clk 0:02:12]} 14. Bc3 {[%clk 0:02:32]}  Qg4 {[%clk 0:02:08]} 15. Qg2 {[%clk 0:02:20]}  Be6 {[%clk 0:01:49]} 16. Rfe1 {[%clk 0:02:08]}  Bf7 {[%clk 0:01:34]} 17. h3 {[%clk 0:01:37]}  Qg5 {[%clk 0:01:31]} 18. f4 {[%clk 0:01:36]}  Qh6 {[%clk 0:01:19]} 19. Bxf5 {[%clk 0:01:33]}  dxc4 {[%clk 0:01:13]} 20. Rad1 {[%clk 0:01:29]}  Rad8 {[%clk 0:01:05]} 21. Qe4 {[%clk 0:00:42]}  Bc5+ {[%clk 0:00:58]} 22. Kh2 {[%clk 0:00:40]}  Kh8 {[%clk 0:00:47]} 23. Rxd8 {[%clk 0:00:31]}  Rxd8 {[%clk 0:00:46]} 24. Be6 {[%clk 0:00:30]}  Bxe6 {[%clk 0:00:27]} 25. Qxe6 {[%clk 0:00:31]}  Qxe6 {[%clk 0:00:27]} 26. Rxe6 {[%clk 0:00:31]}  Kg8 {[%clk 0:00:27]} 27. a4 {[%clk 0:00:21]}  a6 {[%clk 0:00:16]} 28. a5 {[%clk 0:00:20]}  Rd5 {[%clk 0:00:12]} 29. Re4 {[%clk 0:00:19]}  Bf2 {[%clk 0:00:06]} 30. Rxc4 {[%clk 0:00:18]}  Kf7 {[%clk 0:00:05]} 31. Kg2 {[%clk 0:00:19]}  Ba7 {[%clk 0:00:03]} 32. Kf3 {[%clk 0:00:19]}  Bb8 {[%clk 0:00:03]} 33. Rb4 {[%clk 0:00:17]}  Rb5 {[%clk 0:00:02]} 34. Rd4 {[%clk 0:00:15]}  Ke7 {[%clk 0:00:01]} 35. Re4+ {[%clk 0:00:15]}  Kf7 {[%clk 0:00:02]} 36. Re2 {[%clk 0:00:14]}  Rd5 {[%clk 0:00:02]} 37. g4 {[%clk 0:00:13]}  Bc7 {[%clk 0:00:03]} 38. f5 {[%clk 0:00:13]}  Bxa5 {[%clk 0:00:02]} 39. Be5 {[%clk 0:00:12]}  Bb6 {[%clk 0:00:02]} 40. h4 {[%clk 0:00:12]}  Rb5 {[%clk 0:00:02]} 41. g5 {[%clk 0:00:12]}  Rb3+ {[%clk 0:00:03]} 42. Ke4 {[%clk 0:00:12]}  Rb4+ {[%clk 0:00:03]} 43. Kf3 {[%clk 0:00:12]}  Rxh4 {[%clk 0:00:04]} 44. Rd2 {[%clk 0:00:12]}  Ke8 {[%clk 0:00:03]} 45. Bxg7 {[%clk 0:00:12]}  Rh3+ {[%clk 0:00:03]} 46. Kg4 {[%clk 0:00:12]}  Rh1 {[%clk 0:00:04]} 47. f6 {[%clk 0:00:10]}  Rg1+ {[%clk 0:00:04]} 48. Kf5 {[%clk 0:00:10]}  Rf1+ {[%clk 0:00:04]} 49. Ke6 {[%clk 0:00:10]}  Re1+ {[%clk 0:00:05]} 50. Kf5 {[%clk 0:00:11]}  Rf1+ {[%clk 0:00:05]} 51. Kg4 {[%clk 0:00:11]}  Rg1+ {[%clk 0:00:05]} 52. Kf4 {[%clk 0:00:11]}  Bc7+ {[%clk 0:00:05]} 53. Kf5 {[%clk 0:00:10]}  Rf1+ {[%clk 0:00:05]} 54. Ke4 {[%clk 0:00:11]}  Rf4+ {[%clk 0:00:05]} 55. Ke3 {[%clk 0:00:11]}  Rg4 {[%clk 0:00:05]} 56. f7+ {[%clk 0:00:10]}  Kxf7 {[%clk 0:00:05]} 57. Rd7+ {[%clk 0:00:10]}  Ke6 {[%clk 0:00:04]} 58. Rxc7 {[%clk 0:00:11]}  b5 {[%clk 0:00:04]} 59. Rxc6+ {[%clk 0:00:10]}  Kd5 {[%clk 0:00:04]} 60. Rxa6 {[%clk 0:00:08]}  Rxg5 {[%clk 0:00:04]} 61. Bc3 {[%clk 0:00:09]}  Kc4 {[%clk 0:00:03]} 62. Rg6 {[%clk 0:00:08]}  Rxg6 {[%clk 0:00:03]} 63. Ke4 {[%clk 0:00:08]}  Re6+ {[%clk 0:00:03]} 64. Kf5 {[%clk 0:00:08]}  Rc6 {[%clk 0:00:04]} 65. Kg5 {[%clk 0:00:09]}  b4 {[%clk 0:00:04]} 66. Bh8 {[%clk 0:00:09]}  Kb3 {[%clk 0:00:04]} 67. Kh5 {[%clk 0:00:09]} 0-1


[Site "https://www.chess.com"]

[Event "Titled Tuesday Blitz November 07 Early 2023"]
[White "Krzywda, Andrzej"]
[Black "Hua, Lefong"]
[WhiteFideId "1114565"]
[BlackFideId "2602253"]
[WhiteElo "2522"]
[BlackElo "2691"]
[Result "0-1"]
[Round "11"]
[TimeControl "180+1"]
[Date "2023.11.07"]
[WhiteClock "0:00:00"]
[BlackClock "0:00:07"]
[Board "49"]

1. e4 {[%clk 0:03:00]}  c5 {[%clk 0:03:00]} 2. Nf3 {[%clk 0:03:01]}  g6 {[%clk 0:03:00]} 3. d4 {[%clk 0:03:01]}  cxd4 {[%clk 0:03:01]} 4. Nxd4 {[%clk 0:03:02]}  Bg7 {[%clk 0:03:01]} 5. c4 {[%clk 0:03:02]}  Nc6 {[%clk 0:03:01]} 6. Be3 {[%clk 0:03:01]}  Nf6 {[%clk 0:03:02]} 7. Nc3 {[%clk 0:03:01]}  O-O {[%clk 0:03:02]} 8. Be2 {[%clk 0:03:00]}  d6 {[%clk 0:03:03]} 9. O-O {[%clk 0:03:00]}  Bd7 {[%clk 0:03:03]} 10. h3 {[%clk 0:03:00]}  Nxd4 {[%clk 0:03:02]} 11. Bxd4 {[%clk 0:03:00]}  Bc6 {[%clk 0:03:03]} 12. Qc2 {[%clk 0:03:00]}  a5 {[%clk 0:03:03]} 13. b3 {[%clk 0:02:59]}  Nd7 {[%clk 0:03:03]} 14. Bxg7 {[%clk 0:02:59]}  Kxg7 {[%clk 0:03:04]} 15. Rad1 {[%clk 0:02:53]}  Qb6 {[%clk 0:03:01]} 16. a3 {[%clk 0:02:47]}  Rfc8 {[%clk 0:02:53]} 17. Rb1 {[%clk 0:02:44]}  Nf6 {[%clk 0:02:40]} 18. b4 {[%clk 0:02:29]}  axb4 {[%clk 0:02:37]} 19. axb4 {[%clk 0:02:30]}  Qd4 {[%clk 0:02:27]} 20. Rfd1 {[%clk 0:02:22]}  Bxe4 {[%clk 0:02:15]} 21. Nxe4 {[%clk 0:02:09]}  Qxe4 {[%clk 0:02:13]} 22. Bd3 {[%clk 0:02:03]}  Qh4 {[%clk 0:02:02]} 23. Qd2 {[%clk 0:01:58]}  Rc7 {[%clk 0:01:56]} 24. Be2 {[%clk 0:01:43]}  Qe4 {[%clk 0:01:39]} 25. Rb3 {[%clk 0:01:40]}  Rac8 {[%clk 0:01:33]} 26. Re3 {[%clk 0:01:38]}  Qf5 {[%clk 0:01:27]} 27. Bf1 {[%clk 0:01:25]}  Kg8 {[%clk 0:01:21]} 28. Rde1 {[%clk 0:01:24]}  Re8 {[%clk 0:01:17]} 29. Rf3 {[%clk 0:01:24]}  Qc8 {[%clk 0:01:17]} 30. Rf4 {[%clk 0:01:16]}  Kg7 {[%clk 0:01:09]} 31. Rh4 {[%clk 0:01:14]}  h5 {[%clk 0:01:07]} 32. Rf4 {[%clk 0:01:14]}  e5 {[%clk 0:01:05]} 33. Rf3 {[%clk 0:01:04]}  Qe6 {[%clk 0:01:02]} 34. Rd3 {[%clk 0:01:03]}  Qxc4 {[%clk 0:00:57]} 35. Rxd6 {[%clk 0:01:01]}  Qc3 {[%clk 0:00:57]} 36. Qxc3 {[%clk 0:00:35]}  Rxc3 {[%clk 0:00:56]} 37. Rb6 {[%clk 0:00:36]}  Re7 {[%clk 0:00:52]} 38. g3 {[%clk 0:00:28]}  h4 {[%clk 0:00:40]} 39. g4 {[%clk 0:00:21]}  g5 {[%clk 0:00:36]} 40. Bg2 {[%clk 0:00:21]}  e4 {[%clk 0:00:34]} 41. Rb5 {[%clk 0:00:18]}  Rb3 {[%clk 0:00:31]} 42. Rxg5+ {[%clk 0:00:17]}  Kh6 {[%clk 0:00:24]} 43. Rf5 {[%clk 0:00:17]}  Kg6 {[%clk 0:00:24]} 44. Rb5 {[%clk 0:00:18]}  e3 {[%clk 0:00:12]} 45. fxe3 {[%clk 0:00:14]}  Rexe3 {[%clk 0:00:10]} 46. Rxe3 {[%clk 0:00:14]}  Rxe3 {[%clk 0:00:11]} 47. Rxb7 {[%clk 0:00:14]}  Rb3 {[%clk 0:00:11]} 48. Rb6 {[%clk 0:00:13]}  Kg7 {[%clk 0:00:10]} 49. g5 {[%clk 0:00:12]}  Nh5 {[%clk 0:00:10]} 50. Rb7 {[%clk 0:00:10]}  Nf4 {[%clk 0:00:10]} 51. Bf1 {[%clk 0:00:09]}  Rb1 {[%clk 0:00:09]} 52. Kf2 {[%clk 0:00:09]}  Rb2+ {[%clk 0:00:08]} 53. Kf3 {[%clk 0:00:09]}  Ne6 {[%clk 0:00:09]} 54. Kg4 {[%clk 0:00:06]}  Rf2 {[%clk 0:00:09]} 55. Bc4 {[%clk 0:00:06]}  Rf4+ {[%clk 0:00:09]} 56. Kh5 {[%clk 0:00:06]}  Rxc4 {[%clk 0:00:09]} 57. b5 {[%clk 0:00:03]}  Rc5 {[%clk 0:00:08]} 58. Kxh4 {[%clk 0:00:03]}  Rxg5 {[%clk 0:00:07]} 59. b6 {[%clk 0:00:03]}  Rb5 {[%clk 0:00:07]} 60. Kg4 {[%clk 0:00:03]}  Kf6 {[%clk 0:00:06]} 61. h4 {[%clk 0:00:03]}  Rb4+ {[%clk 0:00:07]} 62. Kg3 {[%clk 0:00:03]}  Ng7 {[%clk 0:00:07]} 63. Rb8 {[%clk 0:00:03]}  Nf5+ {[%clk 0:00:07]} 64. Kf2 {[%clk 0:00:02]}  Rxh4 {[%clk 0:00:07]} 65. b7 {[%clk 0:00:03]}  Rb4 {[%clk 0:00:08]} 66. Ke2 {[%clk 0:00:02]}  Ne7 {[%clk 0:00:07]} 67. Kd3 {[%clk 0:00:00]}  Ke6 {[%clk 0:00:07]} 0-1


[Site "https://www.chess.com"]

[Event "Titled Tuesday Blitz November 07 Early 2023"]
[White "Starozhilov, Leonid"]
[Black "Kleiman, Jake"]
[WhiteFideId "14106752"]
[BlackFideId "2020041"]
[WhiteElo "2687"]
[BlackElo "2668"]
[Result "1-0"]
[Round "11"]
[TimeControl "180+1"]
[Date "2023.11.07"]
[WhiteClock "0:00:14"]
[BlackClock "0:00:11"]
[Board "50"]

1. e4 {[%clk 0:03:00]}  e5 {[%clk 0:02:59]} 2. Nc3 {[%clk 0:02:59]}  Nf6 {[%clk 0:02:59]} 3. Nf3 {[%clk 0:02:59]}  Nc6 {[%clk 0:02:57]} 4. Bb5 {[%clk 0:03:00]}  Bd6 {[%clk 0:02:57]} 5. Bxc6 {[%clk 0:02:59]}  dxc6 {[%clk 0:02:57]} 6. h3 {[%clk 0:03:00]}  c5 {[%clk 0:02:57]} 7. d3 {[%clk 0:03:01]}  Nd7 {[%clk 0:02:56]} 8. Be3 {[%clk 0:03:00]}  Nf8 {[%clk 0:02:56]} 9. O-O {[%clk 0:02:57]}  Ne6 {[%clk 0:02:56]} 10. Nd2 {[%clk 0:02:54]}  O-O {[%clk 0:02:56]} 11. Ne2 {[%clk 0:02:50]}  a5 {[%clk 0:02:43]} 12. a4 {[%clk 0:02:41]}  b6 {[%clk 0:02:43]} 13. Nc4 {[%clk 0:02:41]}  Kh8 {[%clk 0:02:41]} 14. f4 {[%clk 0:02:26]}  exf4 {[%clk 0:02:39]} 15. Nxf4 {[%clk 0:02:27]}  Nd4 {[%clk 0:02:31]} 16. Ne2 {[%clk 0:02:16]}  Nc6 {[%clk 0:02:31]} 17. Qd2 {[%clk 0:02:10]}  Be6 {[%clk 0:02:28]} 18. b3 {[%clk 0:02:10]}  Ne5 {[%clk 0:02:25]} 19. Nf4 {[%clk 0:02:06]}  Nxc4 {[%clk 0:02:19]} 20. bxc4 {[%clk 0:02:06]}  Be5 {[%clk 0:02:15]} 21. Rae1 {[%clk 0:01:58]}  Bd7 {[%clk 0:02:14]} 22. Nh5 {[%clk 0:01:38]}  Qh4 {[%clk 0:01:58]} 23. Qe2 {[%clk 0:01:19]}  Rae8 {[%clk 0:01:48]} 24. Bf4 {[%clk 0:01:12]}  Bd4+ {[%clk 0:01:46]} 25. Kh2 {[%clk 0:01:12]}  f5 {[%clk 0:01:43]} 26. Bg3 {[%clk 0:00:52]}  Qd8 {[%clk 0:01:38]} 27. Qd2 {[%clk 0:00:40]}  fxe4 {[%clk 0:01:28]} 28. Rxf8+ {[%clk 0:00:40]}  Rxf8 {[%clk 0:01:29]} 29. Rxe4 {[%clk 0:00:40]}  Bxa4 {[%clk 0:01:18]} 30. c3 {[%clk 0:00:33]}  Bf6 {[%clk 0:01:07]} 31. Nxf6 {[%clk 0:00:33]}  Qxf6 {[%clk 0:01:03]} 32. Bxc7 {[%clk 0:00:31]}  Qc6 {[%clk 0:00:51]} 33. Re7 {[%clk 0:00:25]}  Qf6 {[%clk 0:00:35]} 34. Qe3 {[%clk 0:00:24]}  Bc6 {[%clk 0:00:30]} 35. Re6 {[%clk 0:00:22]}  Qf7 {[%clk 0:00:13]} 36. Rxc6 {[%clk 0:00:21]}  Qd7 {[%clk 0:00:14]} 37. Qe6 {[%clk 0:00:19]}  Qxd3 {[%clk 0:00:15]} 38. Be5 {[%clk 0:00:16]}  Rg8 {[%clk 0:00:11]} 39. Rc8 {[%clk 0:00:14]} 1-0


[Site "https://www.chess.com"]

[Event "Titled Tuesday Blitz November 07 Early 2023"]
[White "Pinto, Daniel"]
[Black "Mamedov, Edgar"]
[WhiteFideId "3303144"]
[BlackFideId "13739980"]
[WhiteElo "2507"]
[BlackElo "2682"]
[Result "0-1"]
[Round "11"]
[TimeControl "180+1"]
[Date "2023.11.07"]
[WhiteClock "0:00:00"]
[BlackClock "0:00:50"]
[Board "51"]

1. e4 {[%clk 0:02:59]}  c5 {[%clk 0:02:59]} 2. Nf3 {[%clk 0:02:59]}  Nc6 {[%clk 0:02:58]} 3. Bb5 {[%clk 0:02:59]}  e5 {[%clk 0:02:56]} 4. O-O {[%clk 0:02:58]}  Bd6 {[%clk 0:02:54]} 5. Nc3 {[%clk 0:02:48]}  a6 {[%clk 0:02:51]} 6. Bc4 {[%clk 0:02:48]}  b5 {[%clk 0:02:42]} 7. Be2 {[%clk 0:02:35]}  Nf6 {[%clk 0:02:40]} 8. d3 {[%clk 0:02:34]}  h6 {[%clk 0:02:40]} 9. h3 {[%clk 0:02:33]}  O-O {[%clk 0:02:37]} 10. Nh4 {[%clk 0:02:33]}  Nd4 {[%clk 0:02:36]} 11. g3 {[%clk 0:02:12]}  Be7 {[%clk 0:02:26]} 12. Bf3 {[%clk 0:02:09]}  Nxf3+ {[%clk 0:02:24]} 13. Qxf3 {[%clk 0:02:10]}  d5 {[%clk 0:02:17]} 14. Nf5 {[%clk 0:01:10]}  d4 {[%clk 0:02:13]} 15. Ne2 {[%clk 0:01:04]}  Bxf5 {[%clk 0:02:07]} 16. Qxf5 {[%clk 0:01:04]}  g6 {[%clk 0:02:04]} 17. Qf3 {[%clk 0:01:00]}  Kg7 {[%clk 0:02:03]} 18. Qg2 {[%clk 0:00:36]}  c4 {[%clk 0:01:40]} 19. f4 {[%clk 0:00:35]}  Nd7 {[%clk 0:01:29]} 20. g4 {[%clk 0:00:24]}  cxd3 {[%clk 0:01:25]} 21. cxd3 {[%clk 0:00:24]}  Rc8 {[%clk 0:01:26]} 22. fxe5 {[%clk 0:00:17]}  Nxe5 {[%clk 0:01:23]} 23. Nf4 {[%clk 0:00:17]}  Bg5 {[%clk 0:01:21]} 24. Nd5 {[%clk 0:00:09]}  Nxd3 {[%clk 0:01:18]} 25. Bxg5 {[%clk 0:00:06]}  Qxg5 {[%clk 0:01:19]} 26. Rad1 {[%clk 0:00:04]}  Ne5 {[%clk 0:01:14]} 27. Rxd4 {[%clk 0:00:04]}  Rc6 {[%clk 0:01:14]} 28. Rd2 {[%clk 0:00:04]}  Rfc8 {[%clk 0:01:11]} 29. b3 {[%clk 0:00:04]}  Rc1 {[%clk 0:01:07]} 30. Rf2 {[%clk 0:00:03]}  a5 {[%clk 0:01:03]} 31. Qg3 {[%clk 0:00:02]}  h5 {[%clk 0:01:00]} 32. Kh1 {[%clk 0:00:02]}  hxg4 {[%clk 0:00:58]} 33. h4 {[%clk 0:00:02]}  Rxf1+ {[%clk 0:00:56]} 34. Rxf1 {[%clk 0:00:03]}  Rh8 {[%clk 0:00:53]} 35. Kg2 {[%clk 0:00:02]}  Rxh4 {[%clk 0:00:52]} 36. Rf4 {[%clk 0:00:00]}  Rh3 {[%clk 0:00:50]} 0-1


[Site "https://www.chess.com"]

[Event "Titled Tuesday Blitz November 07 Early 2023"]
[White "Skliarov, Viktor"]
[Black "Czerw, Dawid"]
[WhiteFideId "14106736"]
[BlackFideId "1145746"]
[WhiteElo "2670"]
[BlackElo "2484"]
[Result "1/2-1/2"]
[Round "11"]
[TimeControl "180+1"]
[Date "2023.11.07"]
[WhiteClock "0:00:08"]
[BlackClock "0:00:04"]
[Board "53"]

1. e4 {[%clk 0:03:00]}  c5 {[%clk 0:03:00]} 2. Nf3 {[%clk 0:03:00]}  g6 {[%clk 0:03:00]} 3. c3 {[%clk 0:02:59]}  Bg7 {[%clk 0:03:00]} 4. d4 {[%clk 0:02:58]}  cxd4 {[%clk 0:03:01]} 5. cxd4 {[%clk 0:02:58]}  d5 {[%clk 0:03:02]} 6. e5 {[%clk 0:02:57]}  Bg4 {[%clk 0:03:02]} 7. h3 {[%clk 0:02:48]}  Bxf3 {[%clk 0:03:02]} 8. Qxf3 {[%clk 0:02:49]}  e6 {[%clk 0:03:01]} 9. Bb5+ {[%clk 0:02:46]}  Nc6 {[%clk 0:02:56]} 10. Nc3 {[%clk 0:02:40]}  Ne7 {[%clk 0:02:53]} 11. Be3 {[%clk 0:02:40]}  Qb6 {[%clk 0:02:49]} 12. O-O {[%clk 0:02:21]}  O-O {[%clk 0:02:48]} 13. Rfd1 {[%clk 0:02:14]}  a6 {[%clk 0:02:42]} 14. Bxc6 {[%clk 0:02:13]}  Nxc6 {[%clk 0:02:43]} 15. Na4 {[%clk 0:02:13]}  Qa7 {[%clk 0:02:34]} 16. Rac1 {[%clk 0:02:09]}  f6 {[%clk 0:02:29]} 17. exf6 {[%clk 0:02:03]}  Bxf6 {[%clk 0:02:27]} 18. Qg4 {[%clk 0:01:59]}  Rae8 {[%clk 0:02:21]} 19. Nc5 {[%clk 0:01:58]}  Nd8 {[%clk 0:01:37]} 20. Nd7 {[%clk 0:01:57]}  Rf7 {[%clk 0:01:36]} 21. Rc7 {[%clk 0:01:56]}  Bg7 {[%clk 0:01:09]} 22. Rdc1 {[%clk 0:01:47]}  Ree7 {[%clk 0:01:06]} 23. Bg5 {[%clk 0:00:54]}  Rxd7 {[%clk 0:00:45]} 24. Bxd8 {[%clk 0:00:55]}  Qxd4 {[%clk 0:00:26]} 25. Qxe6 {[%clk 0:00:42]}  Qxf2+ {[%clk 0:00:18]} 26. Kh1 {[%clk 0:00:42]}  Rxc7 {[%clk 0:00:17]} 27. Rxc7 {[%clk 0:00:42]}  Qf1+ {[%clk 0:00:10]} 28. Kh2 {[%clk 0:00:42]}  Qf4+ {[%clk 0:00:10]} 29. Kh1 {[%clk 0:00:42]}  Qf5 {[%clk 0:00:02]} 30. Qe8+ {[%clk 0:00:30]}  Rf8 {[%clk 0:00:02]} 31. Qe7 {[%clk 0:00:24]}  Qf1+ {[%clk 0:00:02]} 32. Kh2 {[%clk 0:00:24]}  Qf4+ {[%clk 0:00:02]} 33. Kh1 {[%clk 0:00:25]}  Qe5 {[%clk 0:00:02]} 34. Kg1 {[%clk 0:00:10]}  Qxe7 {[%clk 0:00:01]} 35. Bxe7 {[%clk 0:00:10]}  Rf7 {[%clk 0:00:01]} 36. Rc8+ {[%clk 0:00:10]}  Bf8 {[%clk 0:00:01]} 37. Bxf8 {[%clk 0:00:08]}  Rxf8 {[%clk 0:00:02]} 38. Rc7 {[%clk 0:00:08]}  Rf7 {[%clk 0:00:03]} 39. Rc8+ {[%clk 0:00:09]}  Kg7 {[%clk 0:00:04]} 40. Rd8 {[%clk 0:00:09]}  Kf6 {[%clk 0:00:04]} 41. Rxd5 {[%clk 0:00:09]}  Rc7 {[%clk 0:00:05]} 42. Rd2 {[%clk 0:00:09]}  Kf5 {[%clk 0:00:04]} 43. Kf2 {[%clk 0:00:08]} 1/2-1/2


[Site "https://www.chess.com"]